Cogmind - Beta 17 @@@ ROGUE MODE // 2026.07.16 @ 07:45:20 // Winter2019/RPGLIKE Player: Gallgagger Result: Self-destructed Performance ------------- Evolutions (2) 1000 Regions Visited (7) 1400 Robots Destroyed (5) 25 Value Destroyed (57) 57 Prototype IDs (23) 460 Alien Tech Used (0) 0 Bonus (342) 342 TOTAL SCORE: 3284 Bonus ------- Follower Combat Kills 42 Aligned with FarCom 300 Cogmind --------- Core Integrity 363/1750 Matter 300/300 Energy 200/200 System Corruption 0% Temperature Cool (0) Movement Core (50) Location -8/Materials Parts ------- > --- POWER (1) -------- (None) > --- PROPULSION (2) --- (None) > --- UTILITY (1) ------ (None) > --- WEAPON (1) ------- Latent Energy Streamer > --- INVENTORY (3) ---- (None) Peak State ------------ > --- POWER ------------ (None) > --- PROPULSION ------- Flight Unit Flight Unit > --- UTILITY ---------- (None) > --- WEAPON ----------- Latent Energy Streamer > --- INVENTORY -------- EMP Trap EMP Trap EMP Trap [Rating: 12] Favorites ----------- Power None Propulsion Flight Unit Flight Unit Flight Unit Utility None Weapon Mining Claw Energy Cannon Latent Energy Streamer Slashing Weapon Mining Claw Build | -11 -10 -10 -9 -9 -9 -8 -8 ------- Run | Yrd Mat Min Mat Min Exi Min Mat Slots Evolved 1 | . . . . 1 . . . Power . | . . . . . . . . Propulsion 1 | . . . . 1 . . . Utility . | . . . . . . . . Weapon . | . . . . . . . . Parts Attached 5 | . . 2 . 1 1 1 . Power . | . . . . . . . . Engine . | . . . . . . . . Core . | . . . . . . . . Reactor . | . . . . . . . . Propulsion 3 | . . 1 . 1 . 1 . Treads . | . . . . . . . . Leg . | . . . . . . . . Wheel . | . . . . . . . . Hover . | . . . . . . . . Flight 3 | . . 1 . 1 . 1 . Utility . | . . . . . . . . Device . | . . . . . . . . Storage . | . . . . . . . . Processor . | . . . . . . . . Hackware . | . . . . . . . . Protection . | . . . . . . . . Artifact . | . . . . . . . . Weapon 2 | . . 1 . . 1 . . Energy Gun . | . . . . . . . . Energy Cannon 1 | . . . . . 1 . . Ballistic Gun . | . . . . . . . . Ballistic Cannon . | . . . . . . . . Launcher . | . . . . . . . . Special Weapon . | . . . . . . . . Impact Weapon . | . . . . . . . . Slashing Weapon 1 | . . 1 . . . . . Piercing Weapon . | . . . . . . . . Special Melee Weapon . | . . . . . . . . Unidentified Prototypes . | . . . . . . . . Corrupted Parts 1 | . . . . . . 1 . System Corruption 10 | . . . . . . 10 . Parts Lost 3 | . . . . 1 . 2 . Power . | . . . . . . . . Propulsion 3 | . . . . 1 . 2 . Utility . | . . . . . . . . Weapon . | . . . . . . . . Highest Loss Streak 2 | . . . . 1 . 2 . To Critical Strikes . | . . . . . . . . Average Backups . | . . . . . . . . Power . | . . . . . . . . Propulsion . | . . . . . . . . Utility . | . . . . . . . . Weapon . | . . . . . . . . Tool/Special . | . . . . . . . . Unused Backups . | . . . . . . . . Power . | . . . . . . . . Propulsion . | . . . . . . . . Utility . | . . . . . . . . Weapon . | . . . . . . . . Tool/Special . | . . . . . . . . Average Slot Usage (%) 44 | . . 7 50 56 40 46 . Flight 25 | . . 3 25 35 20 26 . Energy Cannon 6 | . . . . . 10 20 . Slashing Weapon 11 | . . 3 25 21 9 . . Peak Build Rating 12 | . . 2 2 3 11 12 . Average Rating 5 | . . . 2 2 7 11 . On Entrance 3 | . . . 2 2 2 11 10 Avg Prop Armor Cover (%) 8 | . . . . . . 8 . Naked Turns 72 | . 20 52 . . . . . Heaviest Build 10 | . . 2 2 2 10 10 . Greatest Support 18 | 3 3 4 4 8 14 18 . Greatest Overweight (x) . | . . . . . . . . Average Overweight (x) . | . . . . . . . . Largest Inventory Capacity 3 | . . . . 3 3 3 . Average Capacity 2 | . . . . 2 3 3 . Most Carried 3 | . . . . 3 3 3 . Average Carried 1 | . . . . 2 3 1 . Final Capacity 3 | . . . . 3 3 3 3 Final Carried 3 | . . . . 3 3 . . Class Distribution -------------------- 100% | Mutant Dominant Class ---------------- Mutant | -10/Materials Mutant | -10/Mines Mutant | -9/Materials Mutant | -9/Mines Mutant | -9/Exiles Mutant | -8/Mines Mutant | -8/Materials Resources | -11 -10 -10 -9 -9 -9 -8 -8 ----------- Run | Yrd Mat Min Mat Min Exi Min Mat Matter Collected 245 | 26 . . . 199 . 20 . Remotely . | . . . . . . . . Salvage Created 100 | 26 . . . . . 74 . Parts 10 | 3 . . . . . 7 . Haulers Intercepted . | . . . . . . . . Recyclers Shooed . | . . . . . . . . Parts Field Recycled . | . . . . . . . . Retrieved Matter . | . . . . . . . . Parts Self-Destructed . | . . . . . . . . Prevented . | . . . . . . . . Parts Restored . | . . . . . . . . Kills | -11 -10 -10 -9 -9 -9 -8 -8 ------- Run | Yrd Mat Min Mat Min Exi Min Mat Combat Hostiles Destroyed 4 | . . . . . . 4 . AOE 4 | . . . . . . 4 . Classes Destroyed 2 | 1 . . . . . 1 . Tunneler 1 | 1 . . . . . . . Swarmer 4 | . . . . . . 4 . Best Kill Streak 4 | 1 . . . . . 4 . Combat Bots Only 4 | . . . . . . 4 . Max Kills in Single Turn 4 | 1 . . . . . 4 . Gunslinging . | . . . . . . . . Exploded 4 | . . . . . . 4 . Melee . | . . . . . . . . Uniques/NPCs Destroyed . | . . . . . . . . Combat | -11 -10 -10 -9 -9 -9 -8 -8 -------- Run | Yrd Mat Min Mat Min Exi Min Mat Hostile Shots Fired 126 | . 9 2 8 22 . 85 . Missed 26 | . 2 2 6 10 . 6 . Hits 100 | . 7 . 2 12 . 79 . Melee 2 | . . . . 2 . . . Projectile 98 | . 7 . 2 10 . 79 . Part Disruptions 2 | . . . . . . 2 . Damage Taken 1543 | 6 95 . 26 178 . 1238 . Core 1387 | 6 95 . 23 168 . 1095 . Absorbed by Shields . | . . . . . . . . Redirected to Core 495 | . . . 9 31 . 455 . Core Remaining (%) 67 | 99 . 83 . . . 20 . Volleys Fired 3 | . . . . . 1 2 . Largest 1 | . . . . . 1 1 . Hottest 60 | . . . . . 60 60 . Shots Fired 3 | . . . . . 1 2 . Gun . | . . . . . . . . Cannon 3 | . . . . . 1 2 . Launcher . | . . . . . . . . Special . | . . . . . . . . Kinetic . | . . . . . . . . Thermal . | . . . . . . . . Explosive . | . . . . . . . . Electromagnetic 3 | . . . . . 1 2 . Robot Hit Streak 2 | . . . . . . 2 . Robot Miss Streak . | . . . . . . . . Penetration Max . | . . . . . . . . Secondary Targets . | . . . . . . . . Shots Hit Robots 2 | . . . . . . 2 . Core Hits 7 | 1 . . . . . 6 . Critical Kills . | . . . . . . . . Critical Parts Destroyed . | . . . . . . . . Critical Strikes . | . . . . . . . . Melee Attacks . | . . . . . . . . Impact . | . . . . . . . . Slashing . | . . . . . . . . Piercing . | . . . . . . . . Sneak Attacks . | . . . . . . . . Combat Hostiles . | . . . . . . . . Follow-up Attacks . | . . . . . . . . Damage Inflicted 458 | 12 . . . . . 446 . Guns . | . . . . . . . . Cannons 6 | . . . . . . 6 . Explosions 234 | . . . . . . 234 . Melee . | . . . . . . . . Ramming 218 | 12 . . . . . 206 . Kinetic . | . . . . . . . . Thermal . | . . . . . . . . Explosive . | . . . . . . . . Electromagnetic 240 | . . . . . . 240 . Impact . | . . . . . . . . Slashing . | . . . . . . . . Piercing . | . . . . . . . . Highest Corruption 19 | . . . . . 3 19 . Average Corruption 12 | . . . . . 3 13 . Corruption Purged . | . . . . . . . . Corruption Blocked . | . . . . . . . . Effects 10 | . . . . . 1 9 . Message Errors 4 | . . . . . . 4 . Matter Fused 3 | . . . . . . 3 . Energy Discharges 2 | . . . . . 1 1 . Data Loss (major) 1 | . . . . . . 1 . Overload Shots . | . . . . . . . . Overflow Damage . | . . . . . . . . Projectiles . | . . . . . . . . Explosions . | . . . . . . . . Melee . | . . . . . . . . Knockbacks 2 | . . . . . . 2 . Impact 2 | . . . . . . 2 . Kinetic . | . . . . . . . . Secondary . | . . . . . . . . Self-Inflicted Damage 101 | 6 . . . . . 95 . Shots . | . . . . . . . . Rammed 44 | 1 . . . . . 43 . Targets Rammed 44 | 1 . . . . . 43 . Kicked . | . . . . . . . . Crushed . | . . . . . . . . Highest Temperature 14 | . . . . . 13 14 . Average Temperature 3 | . . . . . 9 2 . Received Heat Transfer 1660 | . 51 . 9 . . 1600 . Siege Activations . | . . . . . . . . Martial Activations . | . . . . . . . . Shielding Activations . | . . . . . . . . Robots Disrupted . | . . . . . . . . Combat Hostiles . | . . . . . . . . Robots Corrupted . | . . . . . . . . Combat Hostiles . | . . . . . . . . Parts Fried . | . . . . . . . . Impact Corruptions . | . . . . . . . . Robots Melted . | . . . . . . . . Combat Hostiles . | . . . . . . . . Parts Melted . | . . . . . . . . Heat Transferred . | . . . . . . . . Parts Sabotaged . | . . . . . . . . Parts Stolen . | . . . . . . . . Parts Stripped . | . . . . . . . . Power Chain Reactions . | . . . . . . . . Latent Energy Used 492 | . . . . . 200 292 . LE Corruption 8 | . . . . . 3 5 . Alert | -11 -10 -10 -9 -9 -9 -8 -8 ------- Run | Yrd Mat Min Mat Min Exi Min Mat Maximum Alert Level . | . . . . . . . . Low Security (%) 100 | 100 100 100 100 100 . 100 . Level 1 . | . . . . . . . . Level 2 . | . . . . . . . . Level 3 . | . . . . . . . . Level 4 . | . . . . . . . . Level 5 . | . . . . . . . . High Security . | . . . . . . . . Max Security . | . . . . . . . . Peak Influence 127 | 5 3 30 7 127 . 114 . Initial 10 | . 3 . 7 . . . 10 Average 42 | 2 2 2 2 50 . 60 . Influence Increases 329 | 5 . 30 . 167 . 127 . Destroy 0b10 Robot/C 200 | . . . . 120 . 80 . Destroy 0b10 Robot/NC 5 | 5 . . . . . . . Destroy Leader 30 | . . . . 20 . 10 . Allied During Kill 12 | . . . . 12 . . . Disable Machine 15 | . . . . . . 15 . Destroy Structure 22 | . . . . . . 22 . Lose Combat Pursuer 45 | . . 30 . 15 . . . Influence Decreases 319 | . 5 10 20 167 . 100 17 Entered New Map 32 | . 2 . 13 . . . 17 Time Decay 220 | . 3 10 7 120 . 80 . Lost Part 27 | . . . . 7 . 20 . Lost Ally 40 | . . . . 40 . . . Squads Dispatched 1 | . . . 1 . . . . Investigation . | . . . . . . . . Extermination . | . . . . . . . . Reinforcement 1 | . . . 1 . . . . Assault . | . . . . . . . . Garrison . | . . . . . . . . Intercept . | . . . . . . . . Searches Triggered . | . . . . . . . . Construction Impeded . | . . . . . . . . Haulers Reinforced . | . . . . . . . . Active Scanning Responses . | . . . . . . . . Cargo Convoy Interrupts . | . . . . . . . . Stealth | -11 -10 -10 -9 -9 -9 -8 -8 --------- Run | Yrd Mat Min Mat Min Exi Min Mat Distress Signals . | . . . . . . . . Communications Jammed . | . . . . . . . . Distress Signals . | . . . . . . . . Times Spotted 43 | . 2 2 4 30 . 5 . Peak Tracking Total 22 | . 2 2 4 22 9 5 . Tactical Retreats 6 | . . 1 . 5 . . . Traps | -11 -10 -10 -9 -9 -9 -8 -8 ------- Run | Yrd Mat Min Mat Min Exi Min Mat Traps Triggered . | . . . . . . . . Indirectly . | . . . . . . . . Trap Hack Attempts . | . . . . . . . . Triggered . | . . . . . . . . Disarmed . | . . . . . . . . Reprogrammed . | . . . . . . . . Reused 2 | . . . . . . 2 . Traps Extracted . | . . . . . . . . Installed 3 | . . . . . . 3 . Triggered . | . . . . . . . . Most Traps Carried 3 | . . . . 3 3 3 . Machines | -11 -10 -10 -9 -9 -9 -8 -8 ---------- Run | Yrd Mat Min Mat Min Exi Min Mat Machines Disabled 3 | . . . . . 2 1 . Max in Single Turn 2 | . . . . . 2 1 . Machines Repaired . | . . . . . . . . Machines Dismantled . | . . . . . . . . Machines Sabotaged . | . . . . . . . . Overloaded Fab Kills . | . . . . . . . . Hacking | -11 -10 -10 -9 -9 -9 -8 -8 --------- Run | Yrd Mat Min Mat Min Exi Min Mat Machines Accessed 2 | . . . 1 . 1 . . Terminals 1 | . . . 1 . . . . Fabricators . | . . . . . . . . Repair Stations . | . . . . . . . . Recycling Units . | . . . . . . . . Scanalyzers . | . . . . . . . . Garrison Access . | . . . . . . . . Total Hacks 6 | . . . 5 . 1 . . Successful 1 | . . . . . 1 . . Failed 5 | . . . 5 . . . . Catastrophic 2 | . . . 2 . . . . Database Lockouts . | . . . . . . . . Manual 6 | . . . 5 . 1 . . Terminals 5 | . . . 5 . . . . Fabricators . | . . . . . . . . Repair Stations . | . . . . . . . . Recycling Units . | . . . . . . . . Scanalyzers . | . . . . . . . . Garrison Access . | . . . . . . . . Terminal Hacks 1 | . . . . . 1 . . Proto ID Catalog 1 | . . . . . 1 . . Fabricator Hacks . | . . . . . . . . Repair Station Hacks . | . . . . . . . . Recycling Unit Hacks . | . . . . . . . . Scanalyzer . | . . . . . . . . Garrison Access Hacks . | . . . . . . . . Unauthorized Hacks . | . . . . . . . . Terminals . | . . . . . . . . Fabricators . | . . . . . . . . Repair Stations . | . . . . . . . . Recycling Units . | . . . . . . . . Scanalyzers . | . . . . . . . . Garrison Access . | . . . . . . . . Data Cores Recovered . | . . . . . . . . Used . | . . . . . . . . Hacking Detections 1 | . . . 1 . . . . Full Trace Events 1 | . . . 1 . . . . Feedback Events . | . . . . . . . . Feedback Blocked . | . . . . . . . . Robot Schematics Acquired . | . . . . . . . . Robots Built . | . . . . . . . . Authchips . | . . . . . . . . Time . | . . . . . . . . Total Robot Build Rating . | . . . . . . . . Part Schematics Acquired . | . . . . . . . . Parts Built . | . . . . . . . . Authchips . | . . . . . . . . Time . | . . . . . . . . Total Part Build Rating . | . . . . . . . . Part Studies Acquired . | . . . . . . . . Parts Repaired . | . . . . . . . . Time . | . . . . . . . . Parts Recycled . | . . . . . . . . Recycled Matter . | . . . . . . . . Retrieved Matter . | . . . . . . . . Retrieved Components . | . . . . . . . . Parts Scanalyzed . | . . . . . . . . Part Schematics Acquired . | . . . . . . . . Parts Damaged . | . . . . . . . . Bothacking | -11 -10 -10 -9 -9 -9 -8 -8 ------------ Run | Yrd Mat Min Mat Min Exi Min Mat Used RIF Installer . | . . . . . . . . Robots Hacked . | . . . . . . . . Non-combat . | . . . . . . . . Combat . | . . . . . . . . Robot Hacks Applied . | . . . . . . . . Relay Couplers Released . | . . . . . . . . Fabnet Peak Effective % . | . . . . . . . . Robots Rewired . | . . . . . . . . Allies Hacked . | . . . . . . . . Hacks Repelled . | . . . . . . . . Allies | -11 -10 -10 -9 -9 -9 -8 -8 -------- Run | Yrd Mat Min Mat Min Exi Min Mat Total Allies 2 | . . . . 2 . . . Largest Group 2 | . . . . 2 . . . Highest-Rated Group 41 | . . . . 41 . . . Highest-Rated Ally 31 | . . . . 31 . . . Total Orders . | . . . . . . . . Ally Attacks 18 | . . . . 18 . . . Total Damage 251 | . . . . 251 . . . Kills 7 | . . . . 7 . . . Allies Corrupted . | . . . . . . . . Allies Melted . | . . . . . . . . Intel | -11 -10 -10 -9 -9 -9 -8 -8 ------- Run | Yrd Mat Min Mat Min Exi Min Mat Active Infowar (turns) . | . . . . . . . . Robot Analysis Total . | . . . . . . . . Derelict Logs Recovered 1 | . . 1 . . . . . Drone Launches . | . . . . . . . . Drone Recoveries . | . . . . . . . . Exploration | -11 -10 -10 -9 -9 -9 -8 -8 ------------- Run | Yrd Mat Min Mat Min Exi Min Mat Turns Passed 759 | 10 20 62 51 304 118 194 . Spaces Moved 1196 | 19 39 119 128 456 216 219 . Core 175 | 19 39 109 . . . 8 . Treads . | . . . . . . . . Legs . | . . . . . . . . Wheels . | . . . . . . . . Hover . | . . . . . . . . Flight 1021 | . . 10 128 456 216 211 . Fastest Speed 37 | 50 50 40 40 37 40 37 . Average Speed 40 | 50 50 49 40 38 40 38 . Slowest Speed 50 | 50 50 50 40 40 40 50 . Overloaded Moves . | . . . . . . . . Propulsion Burnouts . | . . . . . . . . Robots Hopped 17 | . . . 4 9 . 4 . Potential Cave-ins . | . . . . . . . . Cave-ins Triggered . | . . . . . . . . Exploration Rate (%) 29 | 3 13 31 19 85 62 22 1 Regions Visited 7 Branch Regions 4 Pre-discovered Areas 2 | . . 1 . 1 . . . Known Exits Taken . | . . . . . . . . Unknown Exits Taken 7 | 1 1 1 1 1 1 1 . Scrap Searched 4 | . . . . 2 . 2 . Spaces Dug . | . . . . . . . . Terrain Destroyed 44 | . . . . . 12 32 . Melee . | . . . . . . . . Projectile . | . . . . . . . . AOE 44 | . . . . . 12 32 . Terrain Rammed . | . . . . . . . . Walls Destroyed . | . . . . . . . . Machines Disabled . | . . . . . . . . Actions | -11 -10 -10 -9 -9 -9 -8 -8 --------- Run | Yrd Mat Min Mat Min Exi Min Mat Total 1442 | 19 38 120 123 574 245 323 . Wait 208 | . . . . 124 27 57 . Move 1157 | 18 38 118 119 437 215 212 . Hop 16 | . . . 4 9 . 3 . Pick Up 3 | . . . . 3 . . . Fast Attach 5 | . . 2 . 1 1 1 . Attach . | . . . . . . . . Detach . | . . . . . . . . Swap . | . . . . . . . . Drop 4 | . . . . . 1 3 . Fire 3 | . . . . . 1 2 . Melee . | . . . . . . . . Ram 43 | 1 . . . . . 42 . Kick . | . . . . . . . . Crush . | . . . . . . . . Escape Stasis . | . . . . . . . . Rewire . | . . . . . . . . Trap 3 | . . . . . . 3 . Miscellaneous . | . . . . . . . . Route ------- -11/Scrapyard -10/Materials -10/Mines -9/Materials -9/Mines (discovered 3 exits: [*Mat x2] / *Exi) -9/Exiles -8/Mines -8/Materials History --------- Turn | Location | Event 3 | -11/Scrapyard | Discovered new exit (range 15) 11 | -11/Scrapyard | Entered Materials 27 | -10/Materials | Discovered new exit (range 8) 31 | -10/Materials | Entered Mines 40 | -10/Mines | Learned location of Zion (-6) 76 | -10/Mines | Met a Derelict bent on vengeance 84 | -10/Mines | Discovered new exit (range 3) 93 | -10/Mines | Entered Materials 95 | -9/Materials | Reached level 2 140 | -9/Materials | Discovered new exit (range 11) 144 | -9/Materials | Entered Mines 176 | -9/Mines | Assembled infested the area 203 | -9/Mines | Upgraded with Propulsion slot (x1) 205 | -9/Mines | Reached level 3 217 | -9/Mines | Found a hidden stash of uninstalled traps 224 | -9/Mines | A weapon hastily lodged in a ceiling crevice suddenly fell to the ground 271 | -9/Mines | Learned location of Storage (-8) 300 | -9/Mines | Build established: Mutant 417 | -9/Mines | Discovered new exit (range 9) 441 | -9/Mines | Discovered new exit (range 10) 446 | -9/Mines | Deemed a non-threat by the Exiles lab entrance 446 | -9/Mines | Discovered new exit (range 5) 448 | -9/Mines | Entered Exiles 458 | -9/Exiles | Met 8R-AWN 465 | -9/Exiles | Met EX-HEX 477 | -9/Exiles | Met EX-BIN 483 | -9/Exiles | Aligned with FarCom system 483 | -9/Exiles | Given EX-Vault access code 492 | -9/Exiles | Opened EX-Vault 496 | -9/Exiles | Found Latent Energy Streamer 505 | -9/Exiles | Warned to stay clear of 0b10 Research branches 519 | -9/Exiles | Met EX-DEC 547 | -9/Exiles | Attacked by the Exiles 556 | -9/Exiles | Discovered new exit (range 11) 566 | -9/Exiles | Left Exiles lab with Latent Energy Streamer 566 | -9/Exiles | Entered Mines 569 | -8/Mines | Discovered new exit (range 3) 599 | -8/Mines | Reached level 4 604 | -8/Mines | System corruption reached 10% 635 | -8/Mines | AD-0RF came to Exiles' defense 681 | -8/Mines | Core integrity fell below 50% 712 | -8/Mines | Core integrity fell below 20% 760 | -8/Mines | Entered Materials 760 | -8/Materials | Self-destructed Last Messages --------------- 00721_ Latent Energy Streamer broken. 00721_ Destabilizing: Short circuit. 00722_ Slammed into AD-0RF. 00724_ Destabilizing: Core damaged (-35). 00726_ Slammed into AD-0RF. 00726_ Destabilizing: Core damaged (-70). 00727_ Flight Unit destroyed. 00727_ Slammed into AD-0RF. 00729_ ERD9=2PH=NY 00747_ AD-0RF knocked back. 00748_ Slammed into AD-0RF. 00749_ HFTB4KZ8AP GHB 9IXT3NSY4K 00756_ Destabilizing: System corrupted (+1). 00757_ Slammed into AD-0RF. 00758_ AD-0RF knocked back. 00759_ Slammed into AD-0RF. LOCATION=UNKNOWN GOAL=ESCAPE Map ----- +----------------------------------------------------+ | ?????????????????????????????????????????????????? | | ?????????????????????????????????????????????????? | | ?????????????????????????????????????????????????? | | ?????????????????????????????????????????????????? | | ?????????????????????????????????????????????????? | | ?????????????????????????????????????????????????? | | ?????????????????????????????????????????????????? | | ?????????????????????????????????????????????????? | | ?????????????????????????????????????????????????? | | ?????????????????????????????????????????????????? | | ?????????????????????????????????????????????????? | | ?????????????????????????????????????????????????? | | ???????????????????#?????????????????????????????? | | ???????????????????+ ????????????????????????????? | | ???????????????????# ????????????????????????????? | | ???????????????????# ???????????????????????????? | | ???????????????????# ???????????????????????????? | | ???????????????????# ??????????????????????????? | | ???????????????????# ??????????????????????????? | | ???????????????????# #######???????????????????? | | ???????????????????# ???????????????????? | | ???????????????????? ????????????????????? | | ????????????????????? ?????????????????????? | | ?????????????????????? #?????????????????????? | | ???????????????????????# #?????????????????????? | | ???????????????????????# @ #?????????????????????? | | ???????????????????????# #?????????????????????? | | ???????????????????????#####?????????????????????? | | ?????????????????????????????????????????????????? | | ?????????????????????????????????????????????????? | | ?????????????????????????????????????????????????? | | ?????????????????????????????????????????????????? | | ?????????????????????????????????????????????????? | | ?????????????????????????????????????????????????? | | ?????????????????????????????????????????????????? | | ?????????????????????????????????????????????????? | | ?????????????????????????????????????????????????? | | ?????????????????????????????????????????????????? | | ?????????????????????????????????????????????????? | | | | | | | | | | | | | | | | | | | | | | | +----------------------------------------------------+ Best States ------------- Heat Dissipation 79 Energy Generation 5 Energy Capacity 200 Matter Stores 300 Matter Capacity 300 Sight Range 16 Terrain Scan Density 10 Evasion (%) 62 Item Schematics ----------------- None Robot Schematics ------------------ None Fabricated ------------ Nothing Repaired ---------- Nothing Studied --------- None Alien Tech Used ----------------- None Achievements -------------- None Challenges ------------ None RPGLIKE | -11 -10 -10 -9 -9 -9 -8 -8 --------- Run | Yrd Mat Min Mat Min Exi Min Mat Levels Raised 3 | . . . 1 1 . 1 . XP Earned 7593 | 3000 . 500 1500 1218 350 1025 . XP Spent 7400 | . . . . 2000 1125 4275 . Upgrades 40 | . . . . 4 4 32 . Propulsion Slot 1 | . . . . 1 . . . Core Integrity 23 | . . . . . . 23 . Heat Dissipation 9 | . . . . . . 9 . Energy Storage 2 | . . . . . 2 . . Mass Support 2 | . . . . . 2 . . Inventory Capacity 3 | . . . . 3 . . . Protomatter Created 5 | . . . . . . 5 . Protomatter Decayed 103 | . . . . 103 . . . Game ------ Seed CarbideLobotomyBefriender Manual? 0 Play Time 00:06:18 Cumulative 667.2 hours Start 2026.07.16 @ 07:38:47 End 2026.07.16 @ 07:45:20 Sessions 1 Manual Loads 0 Difficulty Rogue Special Mode Winter2019/RPGLIKE Game No. 309 Rogue 155 Adventurer 154 Explorer 0 Win Type - Total 22 Types 4/5/4/3/2/1/0/1/1/1 Lore% 95 Gallery% 88 Achievement% 68 Wizard Run 0 Options --------- Layout 0 ASCII 0 Keyboard 0 Movement Numpad Keybinds 0 Fullscreen 2 Font 18/SmallcapsGlow Map View 76x50 Zoom Use 0% Tactical HUD 1 Map Filters NONE Filters NONE Steam 1 RUN: bf2b26a5-43fc-464a-be43-53e672dae302